bitfinex-derivatives/quotes_ETHF0:USTF0_20251223
["timestamp","ask_amount","ask_price","bid_price","bid_amount"]
[1766487028958,3.369,2969.8,2969.1,0.00505364]
[1766487029771,0.16847,2969.9,2969.1,0.00505364]
[1766487029961,3.53747,2969.9,2969.1,0.00505364]
[1766487056103,0.16847,2969.9,2969.2,1.19865013]
[1766487056402,0.16847,2969.9,2969.3,3.369]
[1766487056904,0.16847,2969.9,2969.3,3.3262]
[1766487059000,0.16844,2970.5,2969.3,3.3262]
[1766487059205,4.73609013,2970.5,2969.5,1.19865013]
[1766487059394,4.73609013,2970.5,2969.6,3.369]
[1766487060005,0.00505364,2970.3,2969.6,3.369]
[1766487060205,0.00505364,2970.3,2969.4,0.0092]
[1766487060394,0.00505364,2970.3,2969.5,3.369]
[1766487060598,0.0093,2970.2,2969.5,3.369]
[1766487060808,0.01318133,2970.2,2969.5,3.369]
[1766487061102,0.00388133,2970.2,2969.5,3.369]
[1766487072009,0.00388133,2970.2,2969.1,0.00505364]
[1766487072316,0.00388133,2970.2,2969.2,4.115]
[1766487072707,0.01298133,2970.2,2969.3,0.0091]
[1766487073108,0.01298133,2970.2,2969.2,4.115]
[1766487073417,0.00388133,2970.2,2969.3,0.0091]
[1766487073816,0.0091,2970.1,2969.2,4.115]
[1766487074313,0.00388133,2970.2,2969.3,0.0091]
[1766487074705,0.00388133,2970.2,2969.2,4.115]
[1766487078117,0.00388133,2970.2,2969.1,1.20310999]
[1766487078421,0.00388133,2970.2,2969.2,9.379]
[1766487078612,0.00388133,2970.2,2969.3,6.011]
[1766487078817,0.00388133,2970.2,2969.1,1.20310999]
[1766487079012,0.00388133,2970.2,2969.2,5.09]
[1766487080822,0.00388133,2970.2,2969.1,0.00505364]
[1766487081019,0.00388133,2970.2,2969.2,9.378]
[1766487081814,0.00488133,2970.2,2969.3,0.001]
[1766487082321,0.00488133,2970.2,2969.2,9.378]
[1766487082514,0.00488133,2970.2,2969.3,0.001]
[1766487083120,0.00488133,2970.2,2969.3,6.01]
[1766487083321,0.00488133,2970.2,2969.4,3.368]
[1766487083523,0.00488133,2970.2,2969.4,3.369]
[1766487087925,0.00388133,2970.2,2969.4,3.368]
[1766487088128,3.54150364,2970.3,2969.4,3.368]
[1766487089031,3.54501561,2970.3,2969.4,3.368]
[1766487089834,0.17701561,2970.3,2969.5,1.19915634]
[1766487090135,0.17701561,2970.3,2969.5,1.19805635]
[1766487091032,0.17701561,2970.3,2969.4,3.368]
[1766487091232,0.17701561,2970.3,2969.4,44.168]
[1766487092131,0.17701561,2970.3,2969.5,1.19915634]
[1766487092923,0.17701561,2970.3,2969.5,1.19805635]
[1766487093734,0.17701561,2970.3,2969.4,44.168]
[1766487099338,0.17701561,2970.3,2969.4,40.8]
[1766487099636,0.17701561,2970.3,2969.5,9.433]
[1766487099840,0.17701561,2970.3,2969.1,0.00505364]
[1766487100135,0.17701561,2970.3,2969.2,50.236]
[1766487100538,0.17701561,2970.3,2969.2,40.8]
[1766487100741,0.17811561,2970.3,2969.3,9.43809999]
[1766487101040,0.17701561,2970.3,2969.4,9.44]
[1766487103140,3.54501561,2970.3,2969.5,6.074]
[1766487103340,3.54501561,2970.3,2969.5,9.442]
[1766487103637,0.0011,2970.2,2969.6,0.00109999]
[1766487104636,3.54501561,2970.3,2969.2,1.0]
[1766487104836,0.0011,2970.1,2969.5,9.44309999]
[1766487105331,3.54501561,2970.3,2969.5,9.442]
[1766487106435,3.54611561,2970.3,2969.6,0.00109999]
[1766487106639,3.54501561,2970.3,2969.6,0.00109999]
[1766487106943,3.54501561,2970.3,2969.5,9.442]
[1766487107142,3.54611561,2970.3,2969.6,0.00109999]
[1766487108341,3.54501561,2970.3,2969.6,0.00109999]
[1766487108540,0.0011,2970.2,2969.6,0.00109999]
[1766487109238,3.54501561,2970.3,2969.5,9.442]
[1766487109439,0.0011,2970.1,2969.5,9.44309999]
[1766487110042,3.54501561,2970.3,2969.5,9.442]
[1766487119846,0.17701561,2970.3,2969.5,9.442]
[1766487120144,8.918,2970.7,2969.6,1.19780029]
[1766487120340,8.918,2970.7,2969.8,1.19780029]
[1766487120546,8.918,2970.7,2969.9,9.439]
[1766487121046,8.92080952,2970.7,2970.0,0.0036]
[1766487121549,0.16845,2970.3,2969.9,9.4420118]
[1766487121845,0.16845,2970.3,2970.0,0.007]
[1766487122245,0.13499636,2970.3,2970.0,0.007]
[1766487122546,0.13499636,2970.3,2969.9,9.4420118]
[1766487122744,0.13499636,2970.3,2970.0,0.007]
[1766487122944,0.13499636,2970.3,2969.9,9.4420118]
[1766487125747,8.92080952,2970.7,2969.9,9.4420118]
[1766487126144,0.00280952,2970.7,2970.0,0.0077]
[1766487126354,3.53641,2971.0,2970.3,1.19780029]
[1766487126554,3.53641,2971.0,2970.4,0.00505364]
[1766487127344,3.53955182,2971.0,2970.4,0.00505364]
[1766487128350,3.53955182,2971.0,2970.3,9.4518]
[1766487128549,3.53955182,2971.0,2970.3,9.438]
[1766487128746,3.55335183,2971.0,2970.4,0.0138]
[1766487129151,3.54460546,2971.0,2970.4,0.00505364]
[1766487129353,0.01390001,2970.9,2970.4,0.00505364]
[1766487129752,3.54460546,2971.0,2970.4,0.00505364]
[1766487129954,0.01390001,2970.9,2970.4,0.00505364]
[1766487130250,3.54460546,2971.0,2970.4,0.00505364]
[1766487131454,3.54460546,2971.0,2970.3,9.438]
[1766487131455,4.74240575,2971.0,2970.3,9.438]
[1766487131749,1.19780029,2970.8,2970.0,0.0139]
[1766487131955,1.19780029,2970.6,2969.9,0.0030118]
[1766487132361,1.19780029,2970.6,2970.0,0.00505364]
[1766487132653,3.53642,2970.7,2970.0,0.00505364]
[1766487134444,0.16842,2970.7,2970.0,0.00505364]
[1766487134750,3.53642,2970.7,2970.0,0.00505364]
[1766487139953,3.53642,2970.7,2969.2,9.42]
[1766487139954,0.16845,2970.3,2969.2,1.0]
[1766487140155,4.73425029,2970.2,2969.3,3.368]
[1766487140354,3.368,2970.1,2969.3,3.368]
[1766487140553,3.3861,2970.1,2969.4,0.01809999]
[1766487140954,3.368,2970.1,2969.4,0.01809999]
[1766487141154,3.368,2970.1,2969.5,0.00505364]
[1766487141657,0.0181,2970.0,2969.5,0.00505364]
[1766487142158,3.368,2970.1,2969.5,0.00505364]
[1766487142357,3.3861,2970.1,2969.5,0.02315363]
[1766487142769,0.16845,2970.2,2969.7,1.19780029]
[1766487142964,3.368,2970.5,2969.7,1.19780029]
[1766487143359,0.0205,2970.4,2969.8,0.02049999]
[1766487144264,0.0205,2970.4,2969.9,3.368]
[1766487144750,0.16842,2970.7,2969.9,3.368]
[1766487144955,0.0205,2970.6,2969.9,3.38849999]
[1766487145456,0.16842,2970.7,2969.9,3.38849999]
[1766487145656,0.0205,2970.6,2969.9,3.38849999]
[1766487146862,0.16844,2970.5,2969.9,3.368]
[1766487148265,3.53644,2970.5,2969.9,3.368]
[1766487148455,4.73424029,2970.5,2969.9,3.368]
[1766487149669,3.53644,2970.5,2969.9,3.368]
[1766487151166,3.53644,2970.5,2969.9,4.56580029]
[1766487151167,0.16844,2970.5,2969.9,4.56580029]
[1766487151468,3.368,2970.8,2970.1,1.19780029]
[1766487151777,3.368,2970.8,2970.2,3.368]
[1766487152266,5.84419546,2971.0,2970.3,1.19780029]
[1766487152467,5.86469546,2971.0,2970.4,0.02049999]
[1766487152767,0.02869546,2971.0,2970.4,0.02049999]
[1766487153266,0.00819546,2971.0,2970.3,1.19780029]
[1766487153453,0.00819546,2971.0,2970.4,0.02049999]
[1766487157873,0.00819546,2971.0,2970.3,1.19780029]
[1766487159065,0.00819546,2971.0,2970.2,9.437]
[1766487159272,0.00819546,2971.0,2970.4,1.19780029]
[1766487159568,0.00819546,2971.0,2970.5,3.368]
[1766487160470,9.204,2971.4,2970.6,1.19780029]
[1766487161465,0.00505364,2971.3,2970.6,1.19780029]
[1766487161873,0.00505364,2971.3,2970.7,0.0206]
[1766487162266,0.00505364,2971.3,2970.8,0.0206]
[1766487162466,0.00505364,2971.3,2970.6,1.19780029]
[1766487163364,0.00273627,2971.4,2971.0,1.19780029]
[1766487163666,0.00273627,2971.4,2971.0,4.56480029]
[1766487163871,0.00273627,2971.4,2971.0,4.58540029]
[1766487164874,0.00273627,2971.4,2971.0,3.3876]
[1766487168673,0.16837,2971.7,2971.0,3.367]
[1766487169672,0.17264226,2971.7,2971.1,0.00505364]
[1766487170376,0.17264226,2971.7,2971.2,0.0209]
[1766487173179,0.17264226,2971.7,2971.1,0.00505364]
[1766487174078,0.17264226,2971.7,2971.1,1.20285393]
[1766487175478,3.367,2971.9,2971.2,0.0209]
[1766487175878,3.367,2971.9,2971.1,1.20285393]
[1766487176069,0.0209,2972.1,2971.1,1.20285393]
[1766487176070,0.0209,2972.1,2971.5,1.19780029]
[1766487176275,0.16833,2972.4,2971.7,1.19780029]
[1766487176578,0.17218827,2972.4,2971.7,0.00315244]
[1766487176770,1.19780029,2972.1,2971.1,0.00505364]
[1766487177078,1.19780029,2972.1,2971.1,0.03965364]
[1766487177282,1.19780029,2971.5,2970.7,3.367]
[1766487177576,1.19780029,2971.5,2970.1,49.218]
[1766487177577,1.19780029,2971.5,2970.2,1.19780029]
[1766487177782,1.19780029,2971.1,2970.3,3.367]
[1766487177982,4.56480029,2971.1,2970.3,3.367]
[1766487178178,0.03975364,2971.0,2970.4,0.03975363]
[1766487178982,0.00505364,2971.0,2970.4,0.00505364]
[1766487180376,0.00505364,2971.0,2970.4,3.37205364]
[1766487181478,0.00505364,2971.0,2969.7,8.418]
[1766487181479,1.19780029,2970.5,2969.4,3.367]
[1766487181784,1.19780029,2970.2,2969.4,3.367]
[1766487181976,3.3948,2970.4,2969.5,0.0278]
[1766487182175,3.367,2970.4,2969.5,0.0278]
[1766487182376,0.0285,2970.3,2969.7,0.00505364]
[1766487182572,0.03215672,2970.3,2969.2,1.0]
[1766487182781,0.00365672,2970.3,2969.3,3.367]
[1766487183777,0.17210672,2970.3,2969.5,0.00505364]
[1766487184196,0.02800001,2970.2,2969.5,0.00505364]
[1766487184484,3.367,2970.1,2969.5,0.00505364]
[1766487184679,0.02800001,2970.1,2969.5,0.00505364]
[1766487184982,0.17210672,2970.3,2969.6,3.367]
[1766487185377,0.17210672,2970.3,2969.7,0.028]
[1766487186187,0.00365672,2970.3,2969.6,3.367]
[1766487186780,0.00365672,2970.3,2969.7,0.0219]
[1766487187287,0.00365672,2970.3,2969.6,3.367]
[1766487187586,0.00365672,2970.3,2969.7,0.0219]
[1766487187983,0.00365672,2970.3,2969.6,3.367]
[1766487188287,0.00365672,2970.3,2969.7,0.0219]
[1766487188485,3.367,2970.5,2969.6,3.367]
[1766487188698,0.0219,2970.7,2969.7,4.4109]
[1766487188982,3.368,2970.8,2969.7,4.4109]
[1766487189184,0.0219,2970.7,2969.7,4.389]
[1766487189591,0.02602847,2970.7,2969.8,0.0219]
[1766487189886,0.02602847,2970.7,2969.9,3.368]
[1766487190086,0.00412847,2970.7,2969.9,3.368]
[1766487190287,0.0219,2970.6,2969.9,3.3899]
[1766487190682,0.0219,2970.6,2969.9,3.368]
[1766487194389,3.37212847,2970.7,2969.9,3.368]
[1766487198995,3.54054847,2970.7,2969.9,3.368]
[1766487202192,0.0278,2970.6,2969.9,3.368]
[1766487202599,3.54054847,2970.7,2969.9,3.368]
[1766487202900,0.0177,2970.6,2969.9,3.3857]
[1766487203499,3.54054847,2970.7,2969.9,3.3857]
[1766487203800,0.0152,2970.6,2969.9,3.3857]
[1766487204301,3.54054847,2970.7,2969.9,3.3857]
[1766487204495,0.0152,2970.6,2969.9,3.3857]
[1766487204998,3.54054847,2970.7,2969.9,3.3857]
[1766487205200,0.0152,2970.6,2969.9,3.3857]
[1766487205598,3.54054847,2970.7,2969.9,3.3857]
[1766487205786,0.0152,2970.6,2969.9,3.3857]
[1766487206100,0.18363,2970.6,2969.9,3.3857]
[1766487206299,0.16843,2970.6,2969.9,3.3857]
[1766487206896,1.38186929,2970.5,2969.5,0.00505364]
[1766487207197,3.53644,2970.4,2969.6,3.368]
[1766487207391,3.53644,2970.4,2969.6,3.3832]
[1766487207594,1.19822929,2970.2,2969.5,0.00505364]
[1766487207786,1.19822929,2970.2,2969.3,0.00297816]
[1766487207787,0.16847,2970.0,2969.4,0.0152]
[1766487207988,0.16847,2970.0,2969.3,3.37097816]
[1766487208200,0.18377,2969.9,2969.3,3.38627816]
[1766487208403,0.16847,2969.9,2969.3,3.38627816]
[1766487208702,0.16847,2969.9,2969.3,3.3760318]
[1766487221311,0.16847,2969.8,2969.3,3.3760318]
[1766487221513,0.16847,2969.8,2969.3,3.3482318]
[1766487222315,0.16847,2969.8,2969.0,1.0]
[1766487222505,0.16847,2969.8,2969.1,3.368]
[1766487223411,0.16847,2969.8,2969.2,0.00505364]
[1766487224310,3.53647,2969.8,2969.2,0.00505364]
[1766487226814,0.16848,2969.7,2969.2,0.00505364]
[1766487227814,3.368,2969.8,2969.2,0.00505364]
[1766487229419,0.16848,2969.7,2969.2,0.00505364]
[1766487231017,2.31,2969.8,2969.2,0.00505364]
[1766487231217,1.19822929,2970.3,2969.2,0.00505364]
[1766487231410,0.16848,2969.7,2969.2,0.00505364]
[1766487245733,0.16848,2969.7,2969.3,3.368]
[1766487262854,0.16855,2968.5,2967.8,0.58667419]
[1766487263055,0.035,2968.4,2966.9,1.19837021]
[1766487263250,3.368,2968.3,2967.3,1.19837021]
[1766487263454,3.368,2968.3,2967.4,3.368]
[1766487263659,0.1652,2968.2,2967.4,5.54919999]
[1766487263860,0.00505364,2968.1,2967.5,0.00336918]
[1766487264159,0.00421623,2968.2,2967.5,1.36693938]
[1766487264357,0.00421623,2968.2,2967.5,1.20173939]
[1766487264546,0.00421623,2968.2,2967.6,0.16519999]
[1766487265253,0.00926987,2968.2,2967.6,0.16519999]
[1766487267053,0.00926987,2968.2,2967.5,0.00336918]
[1766487267362,1.19837021,2968.1,2967.5,0.00336918]
[1766487267655,1.36367021,2968.1,2967.5,0.00336918]
[1766487267865,3.369,2968.0,2967.5,0.00336918]
[1766487268062,3.5342,2968.0,2967.5,0.00336918]
[1766487270063,3.369,2968.0,2967.5,0.00336918]
[1766487270967,0.00926987,2968.2,2967.5,0.00336918]
[1766487271262,3.37826987,2968.2,2967.5,0.00336918]
[1766487271458,3.37826987,2968.2,2967.6,3.37]
[1766487272160,0.00926987,2968.2,2967.6,3.37]
[1766487272364,0.00926987,2968.2,2967.7,0.16519999]
[1766487275761,0.00926987,2968.2,2967.7,3.53519999]
[1766487278973,0.00926987,2968.2,2967.7,3.37]
[1766487279674,1.19837021,2967.8,2966.5,1.19837021]
[1766487279969,0.16858,2967.9,2967.0,1.19837021]
[1766487280166,0.16858,2967.9,2967.1,3.37]
[1766487280672,3.37,2968.0,2967.1,3.37]
[1766487280673,3.37,2968.0,2967.2,1.36872385]
[1766487280876,0.16858,2967.9,2967.2,1.36872385]
[1766487281171,0.16858,2967.9,2967.2,1.20342385]
[1766487281366,0.16858,2967.9,2967.3,0.1687]
[1766487281767,0.16858,2967.9,2967.2,0.00505364]
[1766487281969,0.16858,2967.9,2967.3,0.1687]
[1766487282674,0.16858,2967.9,2967.2,0.00505364]
[1766487282972,3.37,2968.0,2967.2,0.00505364]
[1766487286574,3.37,2968.0,2967.2,1.20342385]
[1766487287777,3.37,2968.0,2967.2,0.00505364]
[1766487288269,0.168,2967.9,2967.3,0.16799999]
[1766487288463,0.168,2967.9,2967.4,3.37]
[1766487288665,3.37,2968.0,2967.4,3.37]
[1766487288868,0.1646,2967.8,2967.4,3.37]
[1766487290074,3.37,2968.0,2967.4,3.37]
[1766487290275,0.1646,2967.9,2967.4,3.37]
[1766487290675,3.37,2968.0,2967.4,3.37]
[1766487290875,0.1646,2967.9,2967.4,3.37]
[1766487291279,3.37,2968.0,2967.4,3.37]
[1766487291578,3.37,2968.0,2967.2,0.00505364]
[1766487291775,0.1401,2967.9,2967.2,0.00505364]
[1766487298986,3.37,2968.0,2967.2,0.00505364]
[1766487304500,0.16857,2968.1,2967.2,0.00505364]
[1766487304701,3.53957,2968.1,2967.2,0.00505364]
[1766487309813,4.73946858,2968.1,2966.9,6.072]
[1766487310013,4.73946858,2968.1,2967.0,3.371]
[1766487310414,0.134,2968.0,2967.0,3.371]
[1766487310708,0.134,2968.0,2967.0,3.37431882]
[1766487310908,4.73946858,2968.1,2967.0,3.37431882]
[1766487311108,0.134,2968.0,2967.0,3.37431882]
[1766487311505,4.73946858,2968.1,2967.0,3.37431882]
[1766487311700,0.134,2968.0,2967.0,3.37431882]
[1766487312109,4.73946858,2968.1,2967.0,3.37431882]
[1766487312311,0.134,2968.0,2967.0,3.37431882]
[1766487312509,0.16858,2967.9,2966.7,40.8]
[1766487312705,3.371,2967.8,2966.8,3.371]
[1766487312911,3.505,2967.8,2966.8,3.371]
[1766487313107,3.371,2967.8,2966.8,3.371]
[1766487313308,0.134,2967.7,2966.8,4.57089858]
[1766487313507,0.134,2967.7,2966.8,4.57408642]
[1766487313707,3.371,2967.8,2966.8,3.37418784]
[1766487313915,0.16858,2967.9,2966.9,0.134]
[1766487313916,0.134,2967.7,2966.9,0.134]
[1766487314217,3.371,2967.8,2966.9,0.134]
[1766487314408,0.134,2967.6,2966.8,3.37418784]
[1766487315019,3.371,2967.8,2966.9,0.134]
[1766487315616,0.134,2967.7,2966.8,3.37418784]
[1766487316117,3.371,2967.8,2966.9,0.134]
[1766487316715,0.134,2967.7,2966.8,3.37418784]
[1766487317111,3.371,2967.8,2966.9,0.134]
[1766487317913,0.134,2967.7,2966.8,3.37418784]
[1766487318309,3.371,2967.8,2966.8,3.37418784]
[1766487318515,3.505,2967.8,2966.9,0.134]
[1766487318817,3.371,2967.8,2966.9,0.134]
[1766487319011,3.371,2967.8,2966.8,3.37418784]
[1766487326327,3.371,2967.8,2966.9,3.371]
[1766487330726,0.16858,2967.9,2966.9,3.371]
[1766487330930,3.371,2967.8,2966.9,3.371]
[1766487331436,0.0037,2967.7,2967.0,0.00369999]
[1766487338944,3.371,2967.8,2966.9,3.371]
[1766487366062,3.371,2967.8,2966.9,4.5709169]
[1766487370466,3.371,2967.8,2966.9,0.8850169]
[1766487370767,1.3685169,2967.6,2966.9,3.1742]
[1766487370967,1.1999169,2967.4,2966.1,1.1999169]
[1766487371176,3.371,2967.3,2966.2,4.069]
[1766487371363,3.4106,2967.3,2966.2,4.1086]
[1766487371566,3.4106,2967.3,2966.2,4.11236605]
[1766487372474,3.57922,2967.3,2966.2,4.11236605]
[1766487375677,1.1999169,2967.2,2966.2,4.11236605]
[1766487376077,3.53962,2967.3,2966.2,5.27268295]
[1766487376274,3.53962,2967.3,2966.2,4.07276605]
[1766487376577,3.53962,2967.3,2966.2,5.27268295]
[1766487378878,3.53962,2967.3,2966.2,4.07276605]
[1766487379078,3.53962,2967.3,2966.2,5.27268295]
[1766487379380,0.16862,2967.2,2966.2,4.07276605]
[1766487381979,1.3685369,2967.2,2966.2,4.07276605]
[1766487384382,0.16862,2967.2,2966.2,4.07276605]
[1766487389382,0.16862,2967.2,2966.2,5.27268295]
[1766487390888,0.16862,2967.2,2966.2,4.07276605]
[1766487395796,0.16862,2967.2,2966.2,5.27268295]
[1766487398795,0.16862,2967.2,2966.2,4.07276605]
[1766487400501,0.16862,2967.2,2966.2,5.27268295]
[1766487405401,0.16862,2967.2,2966.2,4.07276605]
[1766487423229,3.372,2967.1,2966.2,4.07276605]
[1766487433643,3.372,2967.1,2966.2,0.00376605]
[1766487433834,3.372,2967.1,2966.2,3.37576605]
[1766487443748,0.16862,2967.2,2966.2,3.37576605]
[1766487443942,3.54062,2967.2,2966.3,1.20058702]
[1766487444648,0.16862,2967.2,2966.3,1.20058702]
[1766487445040,0.16862,2967.2,2966.2,3.37576605]
[1766487445446,0.16862,2967.2,2966.2,6.10776605]
[1766487445749,0.16862,2967.2,2966.3,3.372]
[1766487455349,1.36920702,2967.2,2966.2,0.00376605]
[1766487455555,0.16863,2967.1,2966.2,3.37476605]
[1766487455853,3.371,2967.0,2966.2,3.37476605]
[1766487466056,3.53963,2967.0,2966.2,3.37476605]
[1766487474268,3.371,2967.0,2966.2,3.37476605]
[1766487474469,0.16865,2966.8,2965.7,40.8]
[1766487474673,0.00505364,2966.5,2965.8,3.372]
[1766487475267,0.17371364,2966.5,2965.8,3.372]
[1766487475463,0.17371364,2966.5,2965.8,3.37520378]
[1766487480673,0.16867,2966.4,2965.8,0.00320378]
[1766487489097,6.479,2967.9,2966.2,1.20101338]
[1766487489295,0.16863,2967.2,2966.3,3.372]
[1766487489496,3.54063,2967.2,2966.3,3.372]
[1766487489893,0.00340001,2967.1,2966.3,3.372]
[1766487490189,3.54063,2967.2,2966.3,3.372]
[1766487490190,0.00505364,2967.0,2966.4,0.00505364]
[1766487490494,0.00855365,2967.0,2966.4,0.00505364]
[1766487490897,0.00505364,2967.0,2966.4,0.00505364]
[1766487491495,0.00350001,2966.9,2966.4,0.00505364]
[1766487497200,0.00505364,2967.0,2966.4,0.00505364]
[1766487499301,0.17369364,2967.0,2966.4,3.372]
[1766487501398,1.20101338,2968.1,2966.7,1.20101338]
[1766487501591,0.1686,2967.6,2966.8,3.372]
[1766487501994,0.0038,2967.5,2966.9,0.0038]
[1766487502503,0.00505364,2967.5,2966.9,0.00505364]
[1766487506400,0.00505364,2967.5,2967.0,3.372]
[1766487510508,0.17366364,2967.5,2965.8,0.00320378]
[1766487510700,0.17366364,2967.5,2966.5,1.20101338]
[1766487510899,0.17366364,2967.5,2966.6,9.468]
[1766487511099,0.0073,2967.4,2966.6,9.47529999]
[1766487511302,0.0073,2967.4,2966.6,9.468]
[1766487511504,0.17366364,2967.5,2966.7,0.00739999]
[1766487512003,0.18106364,2967.5,2966.6,9.468]
[1766487512304,0.17366364,2967.5,2966.7,1.20101338]
[1766487512810,0.17366364,2967.5,2966.8,0.00739999]
[1766487513013,0.17366364,2967.5,2966.9,3.371]
[1766487513400,0.00421623,2968.2,2967.3,2.40202676]
[1766487513700,0.16857,2968.1,2967.4,3.371]
[1766487514211,0.17607,2968.1,2967.4,3.371]
[1766487514511,0.00505364,2968.0,2967.5,0.00505364]
[1766487514903,0.00505364,2968.0,2967.5,0.01255364]
[1766487519113,0.00505364,2968.0,2967.5,0.00505364]
[1766487520216,0.00505364,2968.0,2967.5,3.371]
[1766487525915,0.00505364,2968.0,2967.6,3.371]
[1766487526405,0.00505364,2968.0,2967.6,3.3786]
[1766487527913,0.17363364,2968.0,2967.6,0.0076]
[1766487528114,0.1686,2967.6,2966.9,3.371]
[1766487528317,1.36962338,2967.5,2966.9,3.371]
[1766487528812,0.0152,2967.4,2966.9,3.371]
[1766487529209,0.0076,2967.4,2966.9,3.371]
[1766487530022,1.36962338,2967.5,2966.9,3.371]
[1766487530318,0.0077,2967.4,2966.9,3.371]
[1766487533023,0.0077,2967.4,2966.8,3.3787]
[1766487533214,1.36962338,2967.5,2966.8,3.371]
[1766487533417,1.37732338,2967.5,2966.9,0.0077]
[1766487535615,1.37732338,2967.5,2966.8,3.371]
[1766487536015,1.37732338,2967.5,2966.9,0.0076]
[1766487537228,0.17631,2967.5,2966.9,0.0076]
[1766487537416,0.16861,2967.5,2966.8,3.371]
[1766487537724,0.16861,2967.5,2966.9,0.0078]
[1766487538226,0.16861,2967.5,2966.8,3.371]
[1766487538414,0.16861,2967.5,2966.9,0.0078]
[1766487538909,0.16861,2967.5,2966.8,3.371]
[1766487539113,0.16861,2967.5,2966.9,0.0078]
[1766487539724,0.17641,2967.5,2966.9,0.0078]
[1766487546720,0.17641,2967.5,2966.9,3.3788]
[1766487547227,0.0153,2967.4,2966.9,3.371]
[1766487547630,0.17641,2967.5,2966.9,3.3788]
[1766487550031,0.16861,2967.5,2966.9,3.371]
[1766487579363,3.371,2967.6,2966.9,3.371]
[1766487579670,1.2668,2967.6,2966.9,3.3557]
[1766487580567,0.16861,2967.5,2966.9,3.3557]
[1766487580966,0.4473,2967.6,2966.9,3.3557]
[1766487581169,3.371,2967.9,2966.9,3.3557]
[1766487581468,0.16861,2967.5,2966.9,3.3557]
[1766487585975,1e-05,2967.5,2966.9,3.3557]
[1766487586470,0.16862,2967.5,2966.9,3.3557]
[1766487587876,3.371,2967.9,2966.9,3.3557]
[1766487588377,0.16861,2967.5,2966.9,3.3557]
[1766487589077,3.371,2967.9,2966.9,3.3557]
[1766487589378,0.16861,2967.5,2966.9,3.3557]
[1766487600390,0.16861,2967.4,2966.2,1.20026555]
[1766487600587,0.16861,2967.4,2966.3,17.883]
[1766487602788,0.16861,2967.4,2966.2,1.20026555]
[1766487602985,0.16861,2967.4,2966.3,6.085]
[1766487603189,0.16861,2967.4,2966.4,9.456]
[1766487603992,0.16861,2967.4,2966.2,1.20026555]
[1766487604186,0.16861,2967.4,2966.5,6.085]
[1766487604386,0.16861,2967.4,2966.6,3.371]
[1766487606580,1e-05,2967.4,2966.6,3.371]
[1766487606784,2.67181,2967.6,2966.6,3.371]
[1766487607592,0.16861,2967.4,2966.6,3.371]
[1766487608091,0.14825637,2967.4,2966.6,3.371]
[1766487609692,0.14825637,2967.4,2966.5,1.20026555]
[1766487609990,4.57109322,2967.9,2966.8,1.20009322]
[1766487610184,4.57109322,2967.9,2966.9,3.371]
[1766487610886,3.371,2967.9,2966.9,3.371]
[1766487612198,3.371,2967.9,2967.0,1.20009322]
[1766487612387,0.16861,2967.4,2967.0,1.20009322]
[1766487615396,0.16861,2967.4,2967.1,6.083]
[1766487615693,0.16861,2967.4,2967.2,3.371]
[1766487616095,3.371,2967.9,2967.2,3.371]
[1766487616397,3.53958,2967.9,2967.2,3.371]
[1766487619296,3.53958,2967.9,2967.2,4.57109322]
[1766487620796,3.53958,2967.9,2967.2,3.371]
[1766487625398,0.00421623,2968.2,2967.6,1.20009322]
[1766487625598,0.00421623,2968.2,2967.7,3.371]
[1766487626397,0.16859,2967.9,2967.7,3.37605364]
[1766487629395,0.16859,2967.9,2967.7,0.00505364]
[1766487629601,0.16859,2967.9,2967.6,3.371]
[1766487631301,0.16859,2967.9,2967.0,1.20009322]
[1766487631505,0.16859,2967.9,2967.1,4.745]
[1766487631705,0.16859,2967.9,2967.2,6.093]
[1766487632007,0.16859,2967.9,2967.2,9.464]
[1766487635507,0.16859,2967.8,2966.5,40.8]
[1766487635808,0.16859,2967.8,2966.7,1.20009322]
[1766487637607,0.16859,2967.8,2966.9,1.20009322]
[1766487637809,0.16859,2967.8,2967.0,9.463]
[1766487642907,0.16859,2967.8,2967.1,9.462]
[1766487653819,0.16859,2967.8,2966.9,1.20009322]
[1766487654019,0.16859,2967.8,2967.0,6.768]
[1766487659326,0.16859,2967.8,2967.0,7.96809322]
[1766487659527,0.16859,2967.8,2967.1,9.46]
[1766487660230,0.16859,2967.7,2967.1,9.46]
[1766487660431,3.371,2968.1,2967.1,9.46]
[1766487661445,0.16859,2967.7,2967.1,9.46]
[1766487663534,0.16859,2967.7,2967.2,6.088]
[1766487663741,0.16859,2967.7,2966.9,1.20009322]
[1766487663940,0.16859,2967.7,2967.0,5.008]
[1766487664935,0.16859,2967.7,2967.1,9.459]
[1766487669240,3.371,2968.1,2967.3,1.20009322]
[1766487669439,3.371,2968.1,2967.4,9.459]
[1766487670242,0.1686,2967.7,2967.4,9.459]
[1766487670644,0.1686,2967.7,2967.5,0.0395]
[1766487671046,0.1686,2967.7,2967.4,9.459]
[1766487671349,0.1686,2967.7,2967.5,0.0371]
[1766487671747,0.1686,2967.7,2967.4,9.459]
[1766487671948,0.1686,2967.7,2967.5,0.0371]
[1766487672352,0.1686,2967.7,2967.4,9.459]
[1766487672554,0.1686,2967.7,2967.5,0.0338]
[1766487672947,0.1686,2967.7,2967.4,9.459]
[1766487675252,0.00926987,2968.2,2967.4,9.459]
[1766487701177,0.00926987,2968.2,2967.4,10.65863848]
[1766487702974,0.17783987,2968.2,2967.3,1.19963848]
[1766487703174,0.17783987,2968.2,2967.5,6.082]
[1766487704370,0.17783987,2968.2,2966.9,1.19963848]
[1766487704673,0.17783987,2968.2,2967.0,17.879]
[1766487704972,0.17783987,2968.2,2967.1,6.082]
[1766487705176,0.17783987,2968.2,2967.1,9.452]